bitfinex/quotes_BTCUSD_20220405
["timestamp","ask_amount","ask_price","bid_price","bid_amount"]
[1649148984835,0.22029045,46663.0,46658.0,0.05]
[1649148984937,0.22029045,46663.0,46659.0,0.320904]
[1649148985035,0.52085401,46664.0,46658.0,0.320904]
[1649148985334,0.52029045,46664.0,46658.0,0.05]
[1649148985636,0.52085401,46664.0,46658.0,0.05]
[1649148985736,0.30056356,46664.0,46657.0,0.35596197]
[1649148986039,0.00056356,46664.0,46657.0,0.35596197]
[1649148986137,0.00056356,46664.0,46658.0,0.320904]
[1649148986489,0.00056356,46664.0,46657.0,0.35596197]
[1649148986591,0.055572,46665.0,46660.0,0.05357682]
[1649148986789,0.00056356,46664.0,46660.0,0.05357682]
[1649148987494,0.17624489,46663.0,46660.0,0.05357682]
[1649148988679,0.17624489,46663.0,46658.0,0.22613548]
[1649148989382,0.00057395,46664.0,46658.0,0.05]
[1649148989481,0.17624827,46663.0,46658.0,0.22613999]
[1649148989581,0.17624827,46663.0,46658.0,0.17613999]
[1649148989831,0.17624827,46663.0,46659.0,0.320629]
[1649148990037,0.17624827,46663.0,46658.0,0.17613999]
[1649148990134,0.17624827,46663.0,46659.0,0.320629]
[1649148990231,0.17624827,46663.0,46659.0,0.370629]
[1649148990332,0.17624827,46663.0,46658.0,0.17613999]
[1649148990434,0.17624827,46663.0,46659.0,0.320629]
[1649148991183,0.17624827,46663.0,46659.0,0.42777601]
[1649148991285,0.17624827,46663.0,46659.0,0.603916]
[1649148991384,0.17624827,46663.0,46659.0,0.653916]
[1649148991632,0.17678523,46664.0,46659.0,0.653916]
[1649148992484,0.17624827,46663.0,46659.0,0.653916]
[1649148992583,0.17624827,46663.0,46659.0,0.47777601]
[1649148992687,0.17624827,46663.0,46659.0,0.653916]
[1649148992984,0.17624827,46663.0,46659.0,0.333287]
[1649148993186,0.17624827,46662.0,46659.0,0.15714701]
[1649148993285,0.22982427,46662.0,46660.0,0.320629]
[1649148993387,0.22982427,46662.0,46661.0,0.13471283]
[1649148993535,0.22982427,46662.0,46661.0,0.370629]
[1649148993634,0.22982427,46662.0,46660.0,0.320629]
[1649148993735,0.22982427,46662.0,46661.0,0.13471283]
[1649148993837,0.22982427,46662.0,46661.0,0.45534183]
[1649148993934,0.22982427,46662.0,46661.0,0.50534183]
[1649148995384,0.053576,46662.0,46661.0,0.50534183]
[1649148995983,0.053576,46662.0,46661.0,0.370629]
[1649148996087,0.053576,46662.0,46661.0,0.50534183]
[1649148996285,0.053576,46662.0,46661.0,0.38146818]
[1649148996584,0.053576,46662.0,46661.0,0.50534183]
[1649148997585,0.22982427,46662.0,46661.0,0.50534183]
[1649148997685,0.22982427,46662.0,46661.0,0.18471283]
[1649148998085,0.22982427,46662.0,46661.0,0.50534183]
[1649148998189,0.053576,46662.0,46661.0,0.50534183]
[1649148998838,0.17624827,46663.0,46661.0,0.50534183]
[1649148998937,0.17624827,46663.0,46662.0,0.45534183]
[1649148999082,0.17624827,46663.0,46662.0,0.13471283]
[1649149000633,0.17624827,46663.0,46662.0,0.45534183]
[1649149000732,0.17624827,46663.0,46662.0,0.13471283]
[1649149000834,0.17624827,46663.0,46662.0,0.45534183]
[1649149000934,0.17624827,46663.0,46662.0,0.13471283]
[1649149001434,0.17612982,46663.0,46662.0,0.13471283]
[1649149003735,0.05611336,46665.0,46662.0,0.45534183]
[1649149003837,0.05611336,46665.0,46661.0,0.05]
[1649149004036,0.05611336,46665.0,46660.0,0.10357214]
[1649149004136,0.35611336,46665.0,46660.0,0.10357214]
[1649149004236,0.22031034,46664.0,46660.0,0.10357214]
[1649149004841,0.2208507,46664.0,46660.0,0.10357214]
[1649149005294,0.2208507,46664.0,46662.0,0.320629]
[1649149005491,0.00054036,46664.0,46662.0,0.370629]
[1649149005590,0.00054036,46664.0,46662.0,0.05]
[1649149005791,0.055573,46665.0,46662.0,0.05]
[1649149005890,0.002,46665.0,46663.0,0.05]
[1649149006092,0.00254035,46665.0,46663.0,0.10357114]
[1649149006947,0.002,46665.0,46663.0,0.10357114]
[1649149007096,0.002,46665.0,46663.0,0.05357114]
[1649149012181,0.17622431,46664.0,46663.0,0.05357114]
[1649149012282,0.002,46665.0,46663.0,0.05357114]
[1649149012382,0.17622343,46664.0,46663.0,0.05357114]
[1649149012484,0.17622343,46664.0,46663.0,0.18828397]
[1649149012581,0.17622343,46664.0,46663.0,0.05357114]
[1649149012780,0.17622343,46664.0,46663.0,0.18828397]
[1649149012881,0.17622343,46664.0,46663.0,0.23828397]
[1649149012985,0.002,46665.0,46663.0,0.23828397]
[1649149013082,0.002,46665.0,46663.0,0.10357114]
[1649149013285,0.1762238,46664.0,46663.0,0.10357114]
[1649149013634,0.002,46665.0,46663.0,0.10357114]
[1649149013737,0.17622312,46664.0,46663.0,0.10357114]
[1649149013935,0.002,46665.0,46663.0,0.10357114]
[1649149014470,0.17622331,46664.0,46663.0,0.10357114]
[1649149014571,0.002,46665.0,46663.0,0.10357114]
[1649149016675,0.17622323,46664.0,46663.0,0.10357114]
[1649149017276,0.17622323,46664.0,46663.0,0.42420014]
[1649149017377,0.17622323,46664.0,46663.0,0.10357114]
[1649149017930,0.002,46665.0,46663.0,0.10357114]
[1649149018035,0.22228193,46665.0,46663.0,0.10357114]
[1649149018430,0.002,46665.0,46663.0,0.10357114]
[1649149018781,0.176223,46664.0,46663.0,0.10357114]
[1649149019631,0.002,46665.0,46663.0,0.10357114]
[1649149019836,0.22228193,46665.0,46663.0,0.10357114]
[1649149020484,0.22228193,46665.0,46663.0,0.09657114]
[1649149020685,0.002,46665.0,46663.0,0.09657114]
[1649149022445,0.302,46665.0,46663.0,0.09657114]
[1649149023100,0.302,46665.0,46663.0,0.05]
[1649149023294,0.302,46665.0,46662.0,0.103571]
[1649149023495,0.17622046,46663.0,46662.0,0.103571]
[1649149023595,0.17622046,46663.0,46662.0,0.23828383]
[1649149024297,0.17622046,46664.0,46662.0,0.23828383]
[1649149024446,0.17622046,46664.0,46663.0,0.13471283]
[1649149024547,0.17876081,46665.0,46663.0,0.18471283]
[1649149024646,0.00254035,46665.0,46663.0,0.05]
[1649149024845,0.00254035,46665.0,46662.0,0.103571]
[1649149025046,0.17621722,46664.0,46662.0,0.103571]
[1649149025147,0.17621722,46664.0,46663.0,0.13471283]
[1649149025381,0.17621722,46664.0,46663.0,0.18471283]
[1649149027185,0.17621722,46664.0,46663.0,0.18221283]
[1649149030204,0.17607655,46664.0,46663.0,0.18221283]
[1649149030812,0.17523255,46664.0,46663.0,0.18221283]
[1649149031907,0.002,46665.0,46663.0,0.18221283]
[1649149032009,0.002,46665.0,46663.0,0.0475]
[1649149032110,0.002,46665.0,46663.0,0.05356886]
[1649149032210,0.002,46665.0,46663.0,0.08364539]
[1649149032311,0.002,46665.0,46663.0,0.13364539]
[1649149035285,0.002,46665.0,46663.0,0.10356886]
[1649149037175,0.002,46665.0,46663.0,0.05262513]
[1649149037375,0.002,46665.0,46663.0,0.00262513]
[1649149040837,0.002,46665.0,46664.0,0.320629]
[1649149040940,0.002,46665.0,46664.0,0.3507036]
[1649149041341,0.002,46665.0,46664.0,0.0800746]
[1649149045345,0.002,46665.0,46664.0,0.7007036]
[1649149045449,0.002,46665.0,46664.0,0.71154173]
[1649149045548,0.002,46665.0,46664.0,0.7007036]
[1649149045658,0.002,46665.0,46664.0,0.71154057]
[1649149045844,0.002,46665.0,46664.0,0.63169172]
[1649149046146,0.002,46665.0,46664.0,0.41153976]
[1649149046346,0.002,46665.0,46664.0,0.51276261]
[1649149046447,0.002,46666.0,46665.0,0.00122424]
[1649149046551,0.002,46666.0,46665.0,0.78392374]
[1649149046750,0.002,46666.0,46665.0,0.64921091]
[1649149046849,0.002,46666.0,46665.0,0.66004707]
[1649149046998,0.002,46666.0,46665.0,0.76126992]
[1649149047599,0.002,46666.0,46665.0,0.73391225]
[1649149047834,0.002,46666.0,46665.0,0.8087373]
[1649149048432,0.002,46666.0,46665.0,0.5087373]
[1649149049634,0.002,46666.0,46665.0,0.3326894]
[1649149050586,0.002,46666.0,46665.0,0.5087373]
[1649149050686,0.002,46666.0,46665.0,0.3326894]
[1649149051891,0.002,46666.0,46665.0,0.50864729]
[1649149052195,0.002,46666.0,46665.0,0.3326894]
[1649149052645,0.002,46666.0,46665.0,0.6326894]
[1649149053499,0.002,46666.0,46665.0,0.63268917]
[1649149053596,0.002,46666.0,46665.0,0.44329352]
[1649149053752,0.002,46666.0,46665.0,0.74329352]
[1649149054397,0.002,46666.0,46665.0,0.63268917]
[1649149054597,0.002,46666.0,46665.0,0.33268917]
[1649149054701,0.002,46666.0,46665.0,0.50858893]
[1649149055150,0.002,46666.0,46665.0,0.33268917]
[1649149055382,0.002,46666.0,46665.0,0.63268917]
[1649149056487,0.002,46666.0,46665.0,0.75656607]
[1649149058639,0.002,46666.0,46665.0,0.93246583]
[1649149060101,0.002,46666.0,46665.0,0.93130207]
[1649149060451,0.002,46666.0,46665.0,0.75540231]
[1649149064230,0.09810772,46668.0,46665.0,0.75540231]
[1649149064231,0.07685459,46668.0,46665.0,0.75540231]
[1649149064333,0.07685459,46668.0,46665.0,0.67424648]
[1649149064482,0.07685459,46668.0,46667.0,0.45534183]
[1649149064582,0.07685459,46668.0,46667.0,0.75534183]
[1649149064681,0.07685459,46668.0,46667.0,0.80534183]
[1649149064781,0.07631427,46668.0,46667.0,0.80534183]
[1649149065887,0.07631427,46668.0,46667.0,0.68146493]
[1649149066087,0.12631427,46668.0,46667.0,0.68146493]
[1649149067136,0.12631427,46668.0,46667.0,0.53203268]
[1649149069344,0.07631427,46668.0,46667.0,0.58203268]
[1649149069992,0.07631427,46668.0,46667.0,0.70590958]
[1649149072076,0.07631427,46668.0,46667.0,0.50529883]
[1649149072178,0.12631427,46668.0,46667.0,0.50529883]
[1649149072977,0.12631427,46668.0,46667.0,0.18471283]
[1649149073231,0.12631427,46668.0,46667.0,0.50529883]
[1649149076290,0.12631427,46668.0,46667.0,0.18471283]
[1649149077192,0.07631427,46668.0,46667.0,0.18471283]
[1649149077291,0.06131427,46668.0,46667.0,0.18471283]
[1649149077701,0.06131427,46668.0,46665.0,6.048e-05]
[1649149077702,0.10411427,46668.0,46665.0,6.048e-05]
[1649149077845,0.03108642,46667.0,46665.0,6.048e-05]
[1649149077945,0.18824442,46667.0,46665.0,6.048e-05]
[1649149078595,0.27220554,46666.0,46665.0,6.048e-05]
[1649149079796,0.157158,46667.0,46665.0,6.048e-05]
[1649149084065,0.157158,46667.0,46665.0,0.05362604]
[1649149090742,0.05,46667.0,46666.0,0.320586]
[1649149090839,0.06188698,46668.0,46666.0,0.320586]
[1649149090840,0.11188698,46668.0,46666.0,0.320586]
[1649149090939,0.06188698,46668.0,46666.0,0.053564]
[1649149091039,0.06131427,46668.0,46666.0,0.053564]
[1649149095912,0.06131427,46668.0,46667.0,0.320586]
[1649149096011,0.06131427,46668.0,46666.0,0.053564]
[1649149096110,0.06131427,46668.0,46667.0,0.320586]
[1649149096212,0.06131427,46668.0,46666.0,0.053564]
[1649149096748,0.06131427,46668.0,46667.0,0.320586]
[1649149096846,0.06131427,46668.0,46666.0,0.053564]
[1649149097697,0.06131427,46668.0,46667.0,0.320588]
[1649149097799,0.06131427,46668.0,46666.0,0.053564]
[1649149097948,0.06131427,46668.0,46667.0,0.320588]
[1649149098048,0.06131427,46668.0,46666.0,0.053564]
[1649149098147,0.06131427,46668.0,46667.0,0.320588]
[1649149098250,0.06131427,46668.0,46666.0,0.053564]
[1649149100939,0.06131427,46668.0,46667.0,0.320588]
[1649149101038,0.06131427,46668.0,46666.0,0.053564]
[1649149101137,0.06131427,46668.0,46667.0,0.320588]
[1649149101237,0.06131427,46668.0,46666.0,0.053564]
[1649149101361,0.06131427,46668.0,46667.0,0.320588]
[1649149101437,0.06131427,46668.0,46666.0,0.053564]
[1649149101539,0.06131427,46668.0,46667.0,0.320588]
[1649149101639,0.06131427,46668.0,46666.0,0.053564]
[1649149101740,0.06131427,46668.0,46667.0,0.320588]
[1649149101990,0.06131427,46668.0,46666.0,0.053564]
[1649149102191,0.06131427,46668.0,46667.0,0.320588]
[1649149102289,0.06131427,46668.0,46666.0,0.053564]
[1649149102389,0.06131427,46668.0,46667.0,0.320588]
[1649149102492,0.06131427,46668.0,46666.0,0.053564]
[1649149102590,0.06131427,46668.0,46667.0,0.320588]
[1649149102693,0.06131427,46668.0,46666.0,0.053564]
[1649149103295,0.06131427,46668.0,46667.0,0.320588]
[1649149103395,0.06131427,46668.0,46666.0,0.053564]
[1649149103597,0.06131427,46668.0,46667.0,0.320588]
[1649149103696,0.06131427,46668.0,46666.0,0.053564]
[1649149104245,0.06131427,46668.0,46667.0,0.320588]
[1649149104345,0.06131427,46668.0,46666.0,0.053564]
[1649149104444,0.06131427,46668.0,46667.0,0.320588]
[1649149104545,0.06131427,46668.0,46666.0,0.053564]
[1649149104648,0.06131427,46668.0,46667.0,0.320588]
[1649149104945,0.06131427,46668.0,46666.0,0.053564]
[1649149105047,0.06131427,46668.0,46667.0,0.320588]
[1649149105146,0.06131427,46668.0,46667.0,1.44468699]
[1649149105298,0.06131427,46668.0,46667.0,1.12409899]
[1649149105698,0.06131427,46668.0,46667.0,1.44468699]
[1649149105998,0.06131427,46668.0,46667.0,1.12409899]
[1649149106752,0.06131427,46668.0,46667.0,1.41216948]
[1649149106952,0.06131427,46668.0,46667.0,1.73275748]
[1649149107051,0.06131427,46668.0,46667.0,1.41216948]
[1649149107157,0.06131427,46668.0,46667.0,1.73275748]
[1649149107555,0.06131427,46668.0,46667.0,1.41216948]
[1649149109307,0.06131427,46668.0,46667.0,1.46216948]
[1649149109609,0.06131427,46668.0,46667.0,1.78275748]
[1649149109715,0.06131427,46668.0,46667.0,1.46216948]
[1649149110311,0.06131427,46668.0,46667.0,1.41216948]
[1649149110962,0.06131427,46668.0,46667.0,1.73275748]
[1649149111066,0.06131427,46668.0,46667.0,1.78275748]
[1649149111161,0.06131427,46668.0,46667.0,1.46216948]
[1649149111263,0.06131427,46668.0,46667.0,1.78275748]
[1649149111604,0.06131427,46668.0,46667.0,1.46216948]
[1649149111704,0.06131427,46668.0,46667.0,1.78275748]
[1649149112005,0.06131427,46668.0,46667.0,1.46216948]
[1649149112205,0.06131427,46668.0,46667.0,1.78275748]
[1649149112310,0.06131427,46668.0,46667.0,1.46216948]
[1649149113059,0.06131427,46668.0,46667.0,1.78275748]
[1649149113261,0.06131427,46668.0,46667.0,1.46216948]
[1649149113562,0.06131427,46668.0,46667.0,1.78275748]
[1649149113664,0.06131427,46668.0,46667.0,1.46216948]
[1649149113764,0.06131427,46668.0,46667.0,1.78275748]
[1649149114066,0.06131427,46668.0,46667.0,1.83631348]
[1649149114873,0.06131427,46668.0,46667.0,1.51572548]
[1649149114972,0.06131427,46668.0,46667.0,1.83631348]
[1649149115369,0.06131427,46668.0,46667.0,2.01228319]
[1649149115867,0.06131427,46668.0,46667.0,1.83631348]
[1649149117269,0.06131427,46668.0,46667.0,2.01227576]
[1649149117722,0.06131427,46668.0,46667.0,1.83631348]
[1649149118522,0.06131427,46668.0,46667.0,2.01226846]
[1649149118623,0.06131427,46668.0,46667.0,1.83631348]
[1649149119338,0.06131427,46668.0,46667.0,1.97102631]
[1649149119586,0.06121869,46668.0,46667.0,1.97102631]
[1649149120589,0.06121869,46668.0,46667.0,1.83631348]
[1649149120790,0.06121869,46668.0,46667.0,1.97102631]
[1649149121842,0.06121869,46668.0,46667.0,1.83631348]
[1649149121941,0.06121869,46668.0,46667.0,1.84714953]
[1649149127245,0.002,46676.0,46675.0,0.00138058]
[1649149127444,0.002,46676.0,46675.0,0.10338075]
[1649149128747,0.17515962,46677.0,46675.0,0.10338075]
[1649149128897,0.17515962,46677.0,46676.0,0.10200017]
[1649149129198,0.05,46677.0,46676.0,0.15200017]
[1649149129299,0.15965939,46678.0,46676.0,0.15200017]
[1649149129397,0.15965939,46678.0,46676.0,0.05]
[1649149129499,0.109115,46678.0,46676.0,0.05]
[1649149129597,0.109115,46678.0,46675.0,0.00138058]
[1649149131860,0.002,46678.0,46675.0,0.00138058]
[1649149132715,0.00194,46678.0,46675.0,0.00138058]
[1649149135544,0.00188,46678.0,46675.0,0.00138058]
[1649149139471,0.00188,46678.0,46677.0,0.01083535]
[1649149139771,0.00188,46678.0,46675.0,0.30138058]
[1649149139870,0.00188,46678.0,46675.0,0.00138058]
[1649149140379,0.00188,46678.0,46675.0,0.22359957]
[1649149140472,0.00188,46678.0,46675.0,0.00138058]
[1649149141375,0.00188,46678.0,46677.0,0.01083535]
[1649149141473,0.00188,46678.0,46675.0,0.00138058]
[1649149141695,0.00188,46678.0,46674.0,0.27094507]
[1649149142297,0.00188,46678.0,46674.0,0.53878813]
[1649149142846,0.00188,46678.0,46677.0,0.01083535]
[1649149142948,0.00246096,46678.0,46677.0,0.01083535]
[1649149143695,0.00246096,46678.0,46674.0,0.53878813]
[1649149143899,0.00188,46678.0,46674.0,0.53878813]
[1649149144200,0.00243007,46678.0,46674.0,0.53878813]
[1649149145153,0.00188,46678.0,46677.0,0.01083535]
[1649149145393,0.00243007,46678.0,46674.0,0.50871926]
[1649149146349,0.00188,46678.0,46674.0,0.50871926]
[1649149146745,0.00243098,46678.0,46674.0,0.50871926]
[1649149147496,0.00188,46678.0,46674.0,0.50871926]
[1649149147696,0.00242432,46678.0,46677.0,0.01083535]
[1649149148752,0.00188,46678.0,46677.0,0.01083535]
[1649149157151,0.00188,46678.0,46674.0,0.17731771]
[1649149157351,0.00188,46678.0,46677.0,0.09115827]
[1649149157453,0.00188,46678.0,46674.0,0.35311707]
[1649149157550,0.00188,46678.0,46677.0,0.08036575]
[1649149159258,0.00188,46678.0,46677.0,0.13036575]
[1649149162682,0.372468,46678.0,46677.0,0.13036575]
[1649149162783,0.372468,46678.0,46677.0,0.05]
[1649149162784,0.54857055,46678.0,46677.0,0.05]
[1649149162884,0.63541199,46678.0,46669.0,0.107133]
[1649149162984,0.17617159,46674.0,46669.0,0.107133]
[1649149163084,0.17617159,46673.0,46669.0,0.107133]
[1649149163181,0.21897159,46673.0,46669.0,0.107133]
[1649149163791,0.300744,46672.0,46669.0,0.107133]
[1649149164124,0.0428,46671.0,46669.0,0.157133]
[1649149168455,0.0428,46671.0,46669.0,0.156585]
[1649149170811,0.00054483,46672.0,46669.0,0.156585]
[1649149171627,0.10357,46673.0,46669.0,0.156585]
[1649149171929,0.10411483,46673.0,46669.0,0.156585]
[1649149172177,0.05411483,46673.0,46669.0,0.156585]
[1649149172779,0.05357,46673.0,46669.0,0.156585]
[1649149172881,0.08567,46673.0,46669.0,0.156585]
[1649149173081,0.08621482,46673.0,46669.0,0.156585]
[1649149173931,0.08567,46673.0,46669.0,0.156585]
[1649149174232,0.08621482,46673.0,46669.0,0.156585]
[1649149175234,0.08567,46673.0,46669.0,0.156585]
[1649149175397,0.08621482,46673.0,46669.0,0.156585]
[1649149176353,0.08567,46673.0,46669.0,0.156585]
[1649149176601,0.08621482,46673.0,46669.0,0.156585]
[1649149177102,0.26236302,46673.0,46669.0,0.156585]
[1649149177302,0.26236302,46673.0,46670.0,0.107139]
[1649149177504,0.08621482,46673.0,46670.0,0.157139]
[1649149177604,0.08567,46673.0,46670.0,0.157139]
[1649149185077,0.0321,46673.0,46670.0,0.157139]
[1649149187302,0.20567902,46667.0,46666.0,0.58310018]
[1649149187401,0.20567902,46667.0,46666.0,0.60368818]
[1649149187602,0.20567902,46667.0,46666.0,0.90665052]
[1649149187699,0.20567902,46667.0,46666.0,1.03067292]
[1649149187800,0.20567902,46667.0,46666.0,1.20659003]
[1649149188001,0.20567902,46667.0,46666.0,1.03067292]
[1649149188100,0.20567902,46667.0,46666.0,1.20659003]
[1649149189057,0.20567902,46667.0,46666.0,0.79650511]
[1649149189353,0.20567902,46667.0,46666.0,0.49650511]
[1649149189453,0.20567902,46667.0,46666.0,0.320588]
[1649149189603,0.20567902,46667.0,46666.0,0.620588]
[1649149189702,0.20567902,46667.0,46666.0,0.320588]
[1649149190104,0.20567902,46667.0,46666.0,0.54626532]
[1649149190967,0.20567902,46667.0,46666.0,0.84626532]
[1649149191222,0.20567902,46667.0,46666.0,1.02218243]
[1649149191771,0.0321,46673.0,46667.0,0.920588]
[1649149191872,0.0321,46673.0,46667.0,0.974146]
[1649149192168,0.0321,46673.0,46667.0,0.374146]
[1649149192272,0.0002031,46672.0,46667.0,0.374146]
[1649149193224,0.0321,46673.0,46667.0,0.374146]
[1649149193473,0.0002031,46672.0,46667.0,0.55006311]
[1649149193771,0.0002031,46672.0,46668.0,0.05355643]
[1649149193872,0.0002031,46672.0,46669.0,0.320588]
[1649149193973,0.0002031,46672.0,46669.0,0.427701]
[1649149194400,0.0321,46673.0,46669.0,0.427701]
[1649149194500,0.0321,46673.0,46669.0,0.107113]
[1649149194699,0.03268243,46673.0,46669.0,0.107113]
[1649149194805,0.03268243,46673.0,46670.0,0.320588]
[1649149194900,0.03268243,46673.0,46669.0,0.107113]
[1649149195201,0.03268243,46673.0,46670.0,0.320588]
[1649149195301,0.03268243,46673.0,46669.0,0.107113]
[1649149195400,0.03268243,46673.0,46670.0,0.320588]
[1649149195502,0.00058243,46673.0,46669.0,0.107113]
[1649149195604,0.31180195,46675.0,46670.0,0.320588]
[1649149195752,0.31180195,46675.0,46669.0,0.107113]
[1649149195852,0.00058242,46674.0,46669.0,0.107113]
[1649149196805,0.48795015,46675.0,46669.0,0.107113]
[1649149197006,0.17672895,46674.0,46669.0,0.107113]
[1649149198057,0.1761482,46674.0,46669.0,0.107113]
[1649149198256,0.17672895,46674.0,46669.0,0.107113]
[1649149199162,0.1761482,46674.0,46669.0,0.107113]
[1649149199564,0.17671076,46674.0,46669.0,0.107113]
[1649149199915,0.00056256,46674.0,46669.0,0.107113]
[1649149200066,0.00056256,46674.0,46670.0,0.05355967]
[1649149200164,0.00056256,46674.0,46670.0,0.16067967]
[1649149200364,0.48795015,46675.0,46670.0,0.16067967]
[1649149200665,0.00056228,46674.0,46670.0,0.16067967]
[1649149201607,0.48795015,46675.0,46670.0,0.16067967]
[1649149201810,0.2588482,46675.0,46670.0,0.16067967]
[1649149201909,0.00056228,46674.0,46670.0,0.16067967]
[1649149202812,0.2797102,46676.0,46670.0,0.16067967]
[1649149203010,0.00087216,46673.0,46670.0,0.16067967]
[1649149203210,0.00054318,46674.0,46670.0,0.16067967]
[1649149203663,0.00054318,46674.0,46670.0,0.10712]
[1649149203761,0.17669138,46674.0,46670.0,0.10712]
[1649149203963,0.10260008,46674.0,46670.0,0.10712]
[1649149204164,0.03786093,46672.0,46670.0,0.10712]
[1649149204415,0.10314326,46674.0,46670.0,0.10712]
[1649149204513,0.00087216,46671.0,46670.0,0.10712]
[1649149204761,0.10314326,46674.0,46670.0,0.10712]
[1649149205262,0.10260008,46674.0,46670.0,0.10712]
[1649149205504,0.27374726,46676.0,46670.0,0.10712]
[1649149205604,0.03786093,46672.0,46670.0,0.10712]
[1649149205804,0.27374726,46676.0,46670.0,0.10712]
[1649149206008,0.053562,46676.0,46670.0,0.10712]
[1649149206706,0.05413925,46676.0,46670.0,0.10712]
[1649149207156,0.03786093,46673.0,46670.0,0.10712]
[1649149207256,0.05413925,46676.0,46670.0,0.10712]
[1649149207656,0.053562,46676.0,46670.0,0.10712]
[1649149207756,0.053562,46676.0,46670.0,0.16067845]
[1649149207857,0.05413925,46676.0,46670.0,0.10712]
[1649149208058,0.00057725,46676.0,46670.0,0.10712]
[1649149208158,0.00057725,46676.0,46670.0,0.40712]
[1649149208557,0.38841399,46673.0,46671.0,0.320588]
[1649149209115,0.07328499,46673.0,46671.0,0.320588]
[1649149209306,0.00028844,46672.0,46671.0,0.320588]
[1649149209405,0.18545972,46672.0,46671.0,0.320588]
[1649149209656,0.13705299,46674.0,46671.0,0.374143]
[1649149209755,0.13705299,46674.0,46672.0,0.320588]
[1649149209855,0.13705299,46674.0,46671.0,0.053555]
[1649149210962,0.13705299,46674.0,46672.0,0.00971916]
[1649149211163,0.18705299,46674.0,46671.0,0.053555]
[1649149211662,0.24061399,46674.0,46671.0,0.053555]
[1649149212465,0.24061399,46674.0,46672.0,0.00971916]
[1649149212766,0.24061399,46674.0,46671.0,0.053555]
[1649149213710,0.24061399,46674.0,46672.0,0.320588]
[1649149213810,0.24061399,46674.0,46671.0,0.053555]
[1649149213909,0.24061399,46674.0,46672.0,0.320588]
[1649149214061,0.24061399,46674.0,46672.0,0.00971916]
[1649149214158,0.103561,46674.0,46673.0,0.63487294]
[1649149214360,0.053561,46674.0,46673.0,0.63487294]
[1649149215614,0.053561,46674.0,46673.0,0.6445921]
[1649149215713,0.107121,46675.0,46673.0,0.6445921]
[1649149215913,0.107121,46675.0,46673.0,0.63487294]
[1649149216366,0.05356,46675.0,46673.0,0.63487294]
[1649149217064,0.05356,46675.0,46674.0,0.00971916]
[1649149217264,0.05356,46675.0,46673.0,0.17463361]
[1649149219267,0.05356,46675.0,46671.0,0.22957969]
[1649149219468,0.05356,46675.0,46674.0,0.17463361]
[1649149219569,0.10770014,46676.0,46674.0,0.17463361]
[1649149219671,0.107124,46676.0,46674.0,0.17463361]
[1649149220556,0.10680769,46676.0,46674.0,0.17463361]
[1649149220659,0.1066599,46676.0,46674.0,0.17463361]
[1649149221158,0.10609737,46676.0,46674.0,0.17463361]
[1649149222659,0.28226727,46676.0,46674.0,0.17463361]
[1649149222962,0.10609737,46676.0,46674.0,0.17463361]
[1649149224533,0.13705299,46675.0,46671.0,0.22957969]
[1649149224882,0.18705299,46675.0,46674.0,0.17463361]
[1649149240109,0.18705299,46675.0,46674.0,0.17080361]
[1649149240264,0.18705299,46675.0,46672.0,0.17602469]
[1649149240409,0.18705299,46675.0,46671.0,0.22957969]
[1649149240508,0.05,46675.0,46674.0,0.17080361]
[1649149240609,0.15609737,46676.0,46674.0,0.17080361]
[1649149240709,0.13705299,46675.0,46674.0,0.17080361]
[1649149244217,0.11705299,46675.0,46674.0,0.17080361]
[1649149245823,0.33226727,46676.0,46674.0,0.17080361]
[1649149246025,0.11705299,46675.0,46674.0,0.17080361]
[1649149246426,0.29322289,46675.0,46674.0,0.17080361]
[1649149247285,0.10025419,46672.0,46671.0,0.053555]
[1649149247384,0.10025419,46672.0,46671.0,0.22608941]
[1649149247484,0.15025419,46672.0,46671.0,0.17608941]
[1649149248036,0.15025419,46672.0,46671.0,0.49667741]
[1649149248332,0.15025419,46672.0,46671.0,0.17608941]
[1649149248736,0.15025419,46672.0,46671.0,0.49667741]
[1649149248835,0.15025419,46672.0,46671.0,0.17608941]
[1649149249138,0.10025419,46672.0,46671.0,0.49667741]
[1649149249687,0.10025419,46672.0,46671.0,0.50751462]
[1649149249886,0.10025419,46672.0,46671.0,0.49667741]
[1649149250709,0.10025419,46672.0,46671.0,0.320588]
[1649149251209,0.10025419,46672.0,46671.0,0.33142521]
[1649149251309,0.21730718,46672.0,46671.0,0.33142521]
[1649149251709,0.21348718,46672.0,46671.0,0.33142521]
[1649149252212,0.26348718,46672.0,46671.0,0.33142521]
[1649149252412,0.26348718,46672.0,46671.0,0.320588]
[1649149252613,0.26348718,46672.0,46671.0,0.34318336]
[1649149253815,0.26348718,46672.0,46671.0,0.33142521]
[1649149254256,0.26348718,46672.0,46671.0,0.50751441]
[1649149255059,0.26348718,46672.0,46671.0,0.33142521]
[1649149255361,0.26348718,46672.0,46671.0,0.33149056]
[1649149255760,0.26348718,46672.0,46671.0,0.55160232]
[1649149256159,0.21348718,46672.0,46671.0,0.55160232]
[1649149256308,0.21348718,46672.0,46671.0,0.55166767]
[1649149257010,0.21348718,46672.0,46671.0,0.33155591]
[1649149257411,0.21348718,46672.0,46671.0,0.33162126]
[1649149257661,0.21348718,46672.0,46671.0,0.85173302]
[1649149258379,0.21348718,46672.0,46671.0,0.85179837]
[1649149258479,0.21348718,46672.0,46671.0,0.63168661]
[1649149259382,0.21348718,46672.0,46671.0,0.63175196]
[1649149260437,0.21348718,46672.0,46671.0,0.63181731]
[1649149261089,0.21348718,46672.0,46671.0,0.33181731]
[1649149261287,0.21348718,46672.0,46671.0,0.55192907]
[1649149261490,0.21348718,46672.0,46671.0,0.55199442]
[1649149262157,0.26348718,46672.0,46671.0,0.55199442]
[1649149262556,0.26348718,46672.0,46671.0,0.55205977]
[1649149262656,0.26348718,46672.0,46671.0,0.85205977]
[1649149263408,0.26348718,46672.0,46671.0,0.55205977]
[1649149263511,0.26348718,46672.0,46671.0,0.55212512]
[1649149264562,0.26348718,46672.0,46671.0,0.55219047]
[1649149264767,0.26348718,46672.0,46671.0,0.33207871]
[1649149265559,0.26348718,46672.0,46671.0,0.33214406]
[1649149265664,0.26348718,46672.0,46671.0,0.50822959]
[1649149266515,0.26348718,46672.0,46671.0,0.33214406]
[1649149266612,0.26348718,46672.0,46671.0,0.33220941]
[1649149267666,0.26348718,46672.0,46671.0,0.33227476]
[1649149268768,0.26348718,46672.0,46671.0,0.33234011]
[1649149269840,0.26348718,46672.0,46671.0,0.33240546]
[1649149269936,0.26348718,46672.0,46671.0,0.33234011]